fUST/lending_fUST_20240628
["ID","MTS","AMOUNT","RATE_DAILY","PERIOD"]
[330501963,1719522439736,-5085.72050361,0.00034899,2]
[330501964,1719522441105,-154.82195475,0.0002243,2]
[330501965,1719522441125,-142.07877553,0.00034624,3]
[330501966,1719522445098,-154.82195475,0.00021917,2]
[330501967,1719522445119,-1411.28523188,0.00034624,3]
[330501968,1719522531101,-152.83677134,0.0002502,2]
[330501969,1719522531130,-152.83677134,0.00025094,2]
[330501970,1719522531159,-160.37235913,0.00025395,2]
[330501971,1719522531187,-160.37235913,0.00025424,2]
[330501972,1719522554110,-152.83677134,0.00027787,2]
[330501973,1719522554132,-115.1574183,0.00028399,2]
[330502071,1719522633411,-190.68525851,0.00028299,2]
[330502073,1719522633421,-45.21494083,0.00028399,2]
[330502075,1719522633432,-159.3297044,0.00028671,2]
[330502077,1719522633443,-62.28209626,0.00029002,2]
[330502079,1719522633459,-129.29213181,0.00029002,2]
[330502081,1719522633470,-153.0,0.00029208,2]
[330502083,1719522633480,-153.0,0.00029208,2]
[330502085,1719522633490,-153.0,0.00029208,2]
[330502087,1719522633500,-153.0,0.00029208,2]
[330502089,1719522633510,-153.0,0.00029208,2]
[330502091,1719522633519,-153.0,0.00029208,2]
[330502093,1719522633531,-153.0,0.00029208,2]
[330502096,1719522633540,-152.83677134,0.00029498,2]
[330502098,1719522633551,-160.37235913,0.00029914,2]
[330502099,1719522633560,-191.83524883,0.000304,2]
[330502101,1719522633569,-152.83677134,0.00030536,7]
[330502104,1719522633580,-521.8799767,0.0003095,2]
[330502105,1719522633590,-160.37235913,0.00031051,7]
[330502107,1719522633599,-160.37235913,0.00031364,7]
[330502109,1719522633608,-160.37235913,0.00031615,7]
[330502111,1719522633618,-160.37235913,0.00032302,7]
[330502113,1719522633628,-159.3297044,0.00032577,7]
[330502115,1719522633637,-152.83677134,0.00032783,7]
[330502117,1719522633646,-152.83677134,0.00032804,7]
[330502119,1719522633656,-160.37235913,0.00033167,7]
[330502121,1719522633666,-159.3297044,0.00033572,7]
[330502123,1719522633675,-159.3297044,0.00034099,7]
[330502125,1719522633685,-159.3297044,0.00034306,7]
[330502127,1719522633694,-152.83677134,0.0003443,7]
[330502129,1719522633704,-159.3297044,0.00034653,7]
[330502131,1719522633714,-21496.10721788,0.0003467,2]
[330502201,1719522638856,-307.90950048,0.00028299,2]
[330502202,1719522638866,-251.41642722,0.00030229,4]
[330502203,1719522638876,-4158.22649412,0.0003467,2]
[330502204,1719522638888,-412.26192045,0.0003467,2]
[330502205,1719522638899,-355.51987353,0.00034895,2]
[330502206,1719522638908,-237.16518055,0.00034899,2]
[330502207,1719522638921,-6869.85103355,0.00034899,2]
[330502208,1719522638931,-156.774861,0.00034995,2]
[330502209,1719522638941,-174.541409,0.00034995,2]
[330502210,1719522638951,-2709.72121891,0.00035,4]
[330502211,1719522638960,-160.37235913,0.00035089,7]
[330502212,1719522638970,-198.09892074,0.00035291,7]
[330502213,1719522638980,-1621.23526265,0.00035292,4]
[330502214,1719522638990,-191.83524883,0.000354,2]
[330502215,1719522638999,-243.49964715,0.00035433,3]
[330502216,1719522639011,-475.09640268,0.00035581,4]
[330502217,1719522639021,-304.7914253,0.00035581,4]
[330502218,1719522639042,-41.43366899,0.00035581,4]
[330502219,1719522639052,-402.69286276,0.00035581,4]
[330502220,1719522639065,-338.78838983,0.00035581,4]
[330502221,1719522639075,-203.13024454,0.00035581,4]
[330502222,1719522639086,-154.85288667,0.00035615,4]
[330502223,1719522639098,-155.37362925,0.00035615,4]
[330502224,1719522639109,-155.39877324,0.00035615,4]
[330502225,1719522639120,-358.86580995,0.00035615,4]
[330502226,1719522639130,-531.01956017,0.00035615,4]
[330502227,1719522639140,-155.11679265,0.00035615,4]
[330502228,1719522639150,-154.83742071,0.00035615,4]
[330502229,1719522639161,-193.04112911,0.00035615,4]
[330502230,1719522639172,-174.541409,0.0003587,2]
[330502231,1719522639183,-156.774861,0.0003587,2]
[330502232,1719522639193,-244.97894054,0.00035999,4]
[330502233,1719522639204,-152.83677134,0.0003615,7]
[330502234,1719522639216,-1098.35636042,0.00036732,4]
[330502235,1719522639226,-174.541409,0.00036745,2]
[330502236,1719522639236,-156.774861,0.00036745,2]
[330502237,1719522639247,-355.51987353,0.00036896,2]
[330502238,1719522639257,-152.8367714,0.00037183,7]
[330502239,1719522639268,-160.37235913,0.00037449,7]
[330502240,1719522639278,-833.00477689,0.00037587,4]
[330502241,1719522639288,-876.0,0.0003765,2]
[330502242,1719522639298,-701.24961211,0.00037839,2]
[330502243,1719522639308,-6070.46433457,0.0003799,5]
[330502244,1719522639317,-160.37235917,0.00038357,7]
[330502245,1719522639327,-159.32970446,0.00039176,7]
[330502246,1719522639338,-234.9,0.00039182,15]
[330502247,1719522639348,-276.7,0.0003955,15]
[330502248,1719522639358,-171.87743142,0.00039816,7]
[330502249,1719522639368,-276.7,0.00039917,15]
[330502250,1719522639378,-500.0,0.00039972,30]
[330502251,1719522639388,-500.0,0.00039972,35]
[330502252,1719522639398,-500.0,0.00039972,40]
[330502253,1719522639407,-500.0,0.00039972,45]
[330502254,1719522639417,-500.0,0.00039972,50]
[330502255,1719522639427,-500.0,0.00039972,55]
[330502256,1719522639437,-500.0,0.00039972,60]
[330502257,1719522639449,-500.0,0.00039972,65]
[330502258,1719522639462,-500.0,0.00039972,70]
[330502259,1719522639476,-167.18872723,0.00039972,75]
[330502260,1719522639486,-170.60977344,0.00039994,4]
[330502261,1719522639503,-170.60977344,0.00039994,4]
[330502262,1719522639514,-1007.0,0.0004,120]
[330502263,1719522639523,-550.87874995,0.0004,30]
[330502264,1719522639534,-8528.48972142,0.0004,30]
[330502265,1719522639549,-155.38523359,0.00040229,4]
[330502266,1719522639559,-276.7,0.00040284,15]
[330502267,1719522639569,-191.83524883,0.000404,2]
[330502268,1719522639579,-161.49972,0.00040411,2]
[330502269,1719522639589,-772.0,0.0004065,2]
[330502270,1719522639599,-276.7,0.00040652,15]
[330502271,1719522639609,-550.0,0.00041,30]
[330502272,1719522639619,-8527.0,0.00041,30]
[330502273,1719522639629,-276.7,0.00041019,15]
[330502274,1719522639640,-154.83742071,0.00041095,4]
[330502275,1719522639650,-154.82195475,0.00041095,4]
[330502276,1719522639660,-3098.19,0.00041095,120]
[330502277,1719522639670,-3098.19,0.00041369,120]
[330502278,1719522639679,-276.7,0.00041386,31]
[330502279,1719522639690,-373.67425734,0.00041589,4]
[330502280,1719522639699,-3098.19,0.00041643,120]
[330502281,1719522639709,-276.7,0.00041754,31]
[330502282,1719522639719,-150.81901718,0.00041861,2]
[330502283,1719522639729,-3910.49,0.00041887,3]
[330502284,1719522639739,-3258.74,0.00041887,3]
[330502285,1719522639749,-19195.62549547,0.00041897,7]
[330502286,1719522639759,-14087.3605275,0.00041907,5]
[330502287,1719522639769,-3098.19,0.00041917,120]
[330502288,1719522639779,-1000.0,0.00042,120]
[330502289,1719522639788,-276.7,0.00042121,31]
[330502290,1719522639798,-3098.19,0.00042191,120]
[330502291,1719522639807,-3098.19,0.00042465,120]
[330502292,1719522639817,-276.7,0.00042488,31]
[330502293,1719522639827,-4478.33542159,0.000425,60]
[330502294,1719522639838,-3098.19,0.00042739,120]
[330502295,1719522639969,-276.7,0.00042856,31]
[330502296,1719522639980,-152.0,0.00042856,31]
[330502297,1719522639990,-14087.3605275,0.0004299,5]
[330502298,1719522640000,-1967.45654607,0.00042999,30]
[330502299,1719522640010,-5265.58028035,0.00043,30]
[330502300,1719522640020,-3098.19,0.00043013,120]
[330502301,1719522640031,-276.7,0.00043223,31]
[330502302,1719522640040,-152.0,0.00043223,31]
[330502303,1719522640051,-3098.19,0.00043287,120]
[330502304,1719522640061,-594.0,0.000433,30]
[330502305,1719522640071,-5282.41580836,0.00043308,2]
[330502306,1719522640081,-3098.19,0.00043561,120]
[330502307,1719522640091,-154.82,0.000436,36]
[330502308,1719522640101,-154.82,0.000436,36]
[330502309,1719522640110,-300.0,0.00043647,7]
[330502310,1719522640120,-772.0,0.0004365,2]
[330502311,1719522640129,-500.0,0.000437,45]
[330502312,1719522640139,-500.0,0.000437,45]
[330502313,1719522640150,-2000.0,0.00043735,2]
[330502314,1719522640159,-252.0,0.000438,19]
[330502315,1719522640169,-12017.48448636,0.000438,120]
[330502316,1719522640179,-297.0837,0.000438,30]
[330502317,1719522640190,-297.0837,0.000438,30]
[330502318,1719522640199,-308.47949848,0.0004382,7]
[330502319,1719522640210,-159.21,0.00043824,7]
[330502320,1719522640219,-159.21,0.00043824,7]
[330502321,1719522640229,-159.21,0.00043824,7]
[330502322,1719522640239,-159.21,0.00043824,7]
[330502323,1719522640249,-159.21,0.00043824,7]
[330502324,1719522640259,-159.21,0.00043824,7]
[330502325,1719522640268,-159.21,0.00043824,7]
[330502326,1719522640277,-159.21,0.00043824,7]
[330502327,1719522640287,-169048.326331,0.00043825,5]
[330502328,1719522640297,-500.0,0.00043835,120]
[330502329,1719522640306,-209.11741686,0.00043835,120]
[330502330,1719522640315,-500.0,0.00043835,7]
[330502331,1719522640325,-500.0,0.00043835,120]
[330502332,1719522640334,-500.0,0.00043835,120]
[330502333,1719522640344,-500.0,0.00043835,120]
[330502334,1719522640354,-592.54876521,0.00043835,120]
[330502335,1719522640364,-500.0,0.00043835,120]
[330502336,1719522640374,-503.03,0.00043835,120]
[330502337,1719522640384,-324.83401137,0.00043835,120]
[330502338,1719522640393,-500.0,0.00043835,120]
[330502339,1719522640403,-500.0,0.00043835,120]
[330502340,1719522640413,-500.0,0.00043835,120]
[330502341,1719522640423,-500.0,0.00043835,120]
[330502342,1719522640433,-500.0,0.00043835,120]
[330502343,1719522640443,-500.0,0.00043835,120]
[330502344,1719522640455,-500.0,0.00043835,120]
[330502345,1719522640466,-500.0,0.00043835,120]
[330502346,1719522640475,-562.18,0.00043835,120]
[330502347,1719522640485,-467.65924197,0.00043835,120]
[330502349,1719522640495,-500.0,0.00043835,120]
[330502351,1719522640504,-500.0,0.00043835,120]
[330502352,1719522640515,-500.0,0.00043835,120]
[330502354,1719522640525,-500.0,0.00043835,120]
[330502355,1719522640536,-500.0,0.00043835,120]
[330502356,1719522640546,-500.0,0.00043835,2]
[330502358,1719522640556,-500.0,0.00043835,120]
[330502359,1719522640566,-500.0,0.00043835,120]
[330502361,1719522640576,-746.63,0.00043835,120]
[330502362,1719522640585,-500.0,0.00043835,120]
[330502363,1719522640595,-500.0,0.00043835,120]
[330502364,1719522640604,-1355.95,0.00043835,120]
[330502365,1719522640615,-834.81,0.00043835,120]
[330502367,1719522640624,-500.0,0.00043835,120]
[330502369,1719522640635,-500.0,0.00043835,120]
[330502370,1719522640644,-500.0,0.00043835,120]
[330502371,1719522640654,-500.0,0.00043835,120]
[330502372,1719522640664,-500.0,0.00043835,120]
[330502373,1719522640675,-151.0,0.00043835,14]
[330502375,1719522640685,-151.0,0.00043835,14]
[330502376,1719522640694,-590.5,0.00043835,120]
[330502377,1719522640704,-151.0,0.00043835,14]
[330502378,1719522640714,-151.0,0.00043835,14]
[330502379,1719522640724,-500.0,0.00043835,120]
[330502380,1719522640733,-500.0,0.00043835,120]
[330502381,1719522640743,-500.0,0.00043835,120]
[330502383,1719522640754,-500.0,0.00043835,120]
[330502384,1719522640765,-989.26,0.00043835,120]
[330502386,1719522640776,-500.0,0.00043835,120]
[330502387,1719522640786,-500.0,0.00043835,120]
[330502388,1719522640796,-200.0,0.00043835,7]
[330502389,1719522640807,-1754.88,0.00043835,120]
[330502390,1719522640817,-500.0,0.00043835,120]
[330502391,1719522640826,-500.0,0.00043835,120]
[330502392,1719522640836,-500.0,0.00043835,120]
[330502393,1719522640847,-510.10061071,0.00043835,120]
[330502394,1719522640856,-675.21,0.00043835,120]
[330502395,1719522640866,-500.0,0.00043835,30]
[330502396,1719522640875,-500.0,0.00043835,120]
[330502397,1719522640884,-500.0,0.00043835,120]
[330502398,1719522640893,-500.0,0.00043835,120]
[330502399,1719522640902,-338.00050963,0.00043835,120]
[330502400,1719522640911,-500.0,0.00043835,120]
[330502401,1719522640920,-500.0,0.00043835,120]
[330502402,1719522640928,-616.41,0.00043835,120]
[330502403,1719522640937,-643.38,0.00043835,120]
[330502404,1719522640946,-500.0,0.00043835,120]
[330502405,1719522640955,-500.0,0.00043835,120]
[330502406,1719522640964,-500.0,0.00043835,120]
[330502407,1719522640973,-500.0,0.00043835,120]
[330502408,1719522640983,-500.0,0.00043835,120]
[330502409,1719522640992,-500.0,0.00043835,120]
[330502410,1719522641001,-500.0,0.00043835,30]
[330502411,1719522641009,-563.97083849,0.00043835,120]
[330502412,1719522641019,-500.0,0.00043835,120]
[330502413,1719522641029,-500.0,0.00043835,120]
[330502414,1719522641038,-586.16,0.00043835,120]
[330502415,1719522641047,-500.0,0.00043835,120]
[330502416,1719522641057,-500.0,0.00043835,7]
[330502417,1719522641066,-500.0,0.00043835,120]
[330502418,1719522641076,-500.0,0.00043835,120]
[330502419,1719522641085,-500.0,0.00043835,120]
[330502420,1719522641094,-500.0,0.00043835,120]
[330502421,1719522641103,-500.0,0.00043835,120]
[330502422,1719522641112,-500.0,0.00043835,120]
[330502423,1719522641121,-500.0,0.00043835,120]
[330502424,1719522641131,-510.97322009,0.00043835,120]
[330502425,1719522641140,-500.0,0.00043835,120]
[330502426,1719522641149,-500.0,0.00043835,120]
[330502427,1719522641158,-500.0,0.00043835,120]
[330502428,1719522641168,-497.15790926,0.00043835,3]
[330502429,1719522641177,-966.71,0.00043835,120]
[330502430,1719522641187,-551.21,0.00043835,120]
[330502431,1719522641195,-500.0,0.00043835,120]
[330502432,1719522641205,-151.0,0.00043835,14]
[330502433,1719522641214,-151.0,0.00043835,14]
[330502434,1719522641224,-500.0,0.00043835,120]
[330502435,1719522641233,-500.0,0.00043835,120]
[330502436,1719522641242,-629.34901279,0.00043835,120]
[330502437,1719522641250,-500.0,0.00043835,120]
[330502438,1719522641260,-151.0,0.00043835,14]
[330502439,1719522641269,-500.0,0.00043835,120]
[330502440,1719522641278,-500.0,0.00043835,120]
[330502441,1719522641287,-500.0,0.00043835,120]
[330502442,1719522641295,-500.0,0.00043835,120]
[330502443,1719522641304,-500.0,0.00043835,30]
[330502444,1719522641313,-321.79464858,0.00043835,120]
[330502445,1719522641322,-237.11654139,0.00043835,120]
[330502446,1719522641332,-500.0,0.00043835,120]
[330502447,1719522641342,-500.0,0.00043835,120]
[330502448,1719522641351,-500.0,0.00043835,120]
[330502449,1719522641359,-500.0,0.00043835,120]
[330502450,1719522641368,-500.0,0.00043835,120]
[330502451,1719522641377,-500.0,0.00043835,120]
[330502452,1719522641386,-500.0,0.00043835,120]
[330502453,1719522641395,-500.0,0.00043835,120]
[330502454,1719522641404,-500.0,0.00043835,120]
[330502455,1719522641414,-500.0,0.00043835,120]
[330502456,1719522641423,-500.0,0.00043835,120]
[330502457,1719522641431,-500.0,0.00043835,120]
[330502458,1719522641440,-446.02374784,0.00043835,8]
[330502459,1719522641457,-500.0,0.00043835,120]
[330502460,1719522641469,-500.0,0.00043835,120]
[330502461,1719522641478,-500.0,0.00043835,120]
[330502462,1719522641487,-500.0,0.00043835,120]
[330502463,1719522641500,-500.0,0.00043835,120]
[330502464,1719522641510,-500.0,0.00043835,120]
[330502465,1719522641519,-500.0,0.00043835,120]
[330502466,1719522641528,-500.0,0.00043835,120]
[330502467,1719522641537,-500.0,0.00043835,120]
[330502468,1719522641546,-972.51,0.00043835,120]
[330502469,1719522641556,-500.0,0.00043835,120]
[330502470,1719522641565,-500.0,0.00043835,120]
[330502471,1719522641574,-500.0,0.00043835,120]
[330502472,1719522641582,-500.0,0.00043835,120]
[330502473,1719522641591,-500.0,0.00043835,120]
[330502474,1719522641600,-461.07509977,0.00043835,120]
[330502475,1719522641609,-500.0,0.00043835,120]
[330502476,1719522641618,-500.0,0.00043835,120]
[330502477,1719522641626,-557.26579318,0.00043835,120]
[330502478,1719522641636,-691.09,0.00043835,120]
[330502479,1719522641644,-500.0,0.00043835,120]
[330502480,1719522641742,-500.0,0.00043835,120]
[330502481,1719522641751,-500.0,0.00043835,120]
[330502482,1719522641760,-500.0,0.00043835,120]
[330502483,1719522641769,-500.0,0.00043835,120]
[330502484,1719522641778,-500.0,0.00043835,120]
[330502485,1719522641787,-500.0,0.00043835,120]
[330502486,1719522641795,-587.89,0.00043835,120]
[330502487,1719522641804,-500.0,0.00043835,120]
[330502488,1719522641813,-500.0,0.00043835,120]
[330502489,1719522641822,-500.0,0.00043835,120]
[330502490,1719522641831,-500.0,0.00043835,120]
[330502491,1719522641841,-754.47,0.00043835,120]
[330502492,1719522641850,-500.0,0.00043835,120]
[330502493,1719522641859,-500.0,0.00043835,120]
[330502494,1719522641868,-500.0,0.00043835,120]
[330502495,1719522641877,-500.0,0.00043835,120]
[330502496,1719522641886,-959.55,0.00043835,120]
[330502497,1719522641895,-500.0,0.00043835,120]
[330502498,1719522641905,-500.0,0.00043835,120]
[330502499,1719522641913,-500.0,0.00043835,120]
[330502500,1719522641922,-8802.76,0.00043835,120]
[330502501,1719522641931,-500.0,0.00043835,120]
[330502502,1719522641939,-500.0,0.00043835,7]
[330502503,1719522641948,-500.0,0.00043835,120]
[330502504,1719522641957,-500.0,0.00043835,120]
[330502505,1719522641965,-728.27,0.00043835,120]
[330502506,1719522641974,-1783.03,0.00043835,120]
[330502507,1719522641983,-910.62,0.00043835,120]
[330502508,1719522641992,-597.31,0.00043835,120]
[330502509,1719522642000,-500.0,0.00043835,2]
[330502510,1719522642010,-500.0,0.00043835,120]
[330502511,1719522642018,-519.79,0.00043835,120]
[330502512,1719522642027,-500.0,0.00043835,120]
[330502513,1719522642036,-500.0,0.00043835,120]
[330502514,1719522642045,-500.0,0.00043835,120]
[330502515,1719522642054,-500.0,0.00043835,120]
[330502516,1719522642063,-542.16,0.00043835,120]
[330502517,1719522642072,-500.0,0.00043835,120]
[330502518,1719522642081,-1034.48,0.00043835,120]
[330502519,1719522642090,-590.49215839,0.00043835,120]
[330502520,1719522642098,-500.0,0.00043835,120]
[330502521,1719522642107,-500.0,0.00043835,120]
[330502522,1719522642116,-784.65,0.00043835,120]
[330502523,1719522642126,-500.0,0.00043835,120]
[330502524,1719522642134,-500.0,0.00043835,120]
[330502525,1719522642143,-500.0,0.00043835,30]
[330502526,1719522642152,-292.02023737,0.00043835,120]
[330502527,1719522642161,-682.71,0.00043835,120]
[330502528,1719522642170,-500.0,0.00043835,120]
[330502529,1719522642179,-979.63,0.00043835,120]
[330502530,1719522642188,-500.0,0.00043835,120]
[330502531,1719522642197,-500.0,0.00043835,120]
[330502532,1719522642206,-921.52,0.00043835,120]
[330502533,1719522642215,-500.0,0.00043835,120]
[330502534,1719522642225,-500.0,0.00043835,120]
[330502535,1719522642234,-500.0,0.00043835,120]
[330502536,1719522642243,-500.0,0.00043835,120]
[330502537,1719522642252,-210.3642106,0.00043835,120]
[330502538,1719522642262,-621.26,0.00043835,120]
[330502539,1719522642271,-500.0,0.00043835,120]
[330502540,1719522642280,-500.0,0.00043835,120]
[330502541,1719522642294,-500.0,0.00043835,120]
[330502542,1719522642303,-500.0,0.00043835,120]
[330502543,1719522642312,-500.0,0.00043835,120]
[330502544,1719522642322,-571.36581668,0.00043835,120]
[330502545,1719522642330,-500.0,0.00043835,120]
[330502546,1719522642339,-500.0,0.00043835,120]
[330502547,1719522642348,-500.0,0.00043835,120]
[330502548,1719522642358,-500.0,0.00043835,120]
[330502549,1719522642367,-500.0,0.00043835,120]
[330502550,1719522642376,-500.0,0.00043835,120]
[330502551,1719522642385,-1564.95,0.00043835,120]
[330502552,1719522642395,-650.22,0.00043835,120]
[330502553,1719522642404,-500.0,0.00043835,120]
[330502554,1719522642414,-500.0,0.00043835,120]
[330502555,1719522642423,-500.0,0.00043835,120]
[330502556,1719522642432,-500.0,0.00043835,120]
[330502557,1719522642441,-500.0,0.00043835,120]
[330502558,1719522642451,-703.41,0.00043835,120]
[330502559,1719522642464,-500.0,0.00043835,120]
[330502560,1719522642473,-500.0,0.00043835,120]
[330502561,1719522642482,-500.0,0.00043835,120]
[330502562,1719522642491,-1349.12,0.00043835,120]
[330502563,1719522642502,-629.79029626,0.00043835,120]
[330502564,1719522642512,-500.0,0.00043835,120]
[330502565,1719522642521,-500.0,0.00043835,120]
[330502566,1719522642532,-500.0,0.00043835,120]
[330502567,1719522642541,-500.0,0.00043835,120]
[330502568,1719522642550,-2353.44,0.00043835,120]
[330502569,1719522642559,-500.0,0.00043835,120]
[330502570,1719522642568,-500.0,0.00043835,120]
[330502571,1719522642578,-500.0,0.00043835,120]
[330502572,1719522642586,-500.0,0.00043835,120]
[330502573,1719522642595,-792.6,0.00043835,120]
[330502574,1719522642605,-500.0,0.00043835,2]
[330502575,1719522642613,-500.0,0.00043835,120]
[330502576,1719522642622,-151.0,0.00043835,14]
[330502577,1719522642632,-533.29,0.00043835,120]
[330502578,1719522642641,-500.0,0.00043835,120]
[330502579,1719522642650,-500.0,0.00043835,20]
[330502580,1719522642660,-542.66,0.00043835,120]
[330502581,1719522642669,-500.0,0.00043835,120]
[330502582,1719522642679,-500.0,0.00043835,120]
[330502583,1719522642688,-976.17,0.00043835,120]
[330502584,1719522642698,-500.0,0.00043835,120]
[330502585,1719522642707,-500.0,0.00043835,120]
[330502586,1719522642716,-500.0,0.00043835,120]
[330502587,1719522642725,-500.0,0.00043835,120]
[330502588,1719522642735,-500.0,0.00043835,120]
[330502589,1719522642744,-518.3030023,0.00043835,120]
[330502590,1719522642753,-500.7,0.00043835,120]
[330502591,1719522642764,-500.0,0.00043835,120]
[330502592,1719522642773,-500.0,0.00043835,120]
[330502593,1719522642782,-500.0,0.00043835,120]
[330502594,1719522642792,-583.39,0.00043835,120]
[330502595,1719522642801,-500.0,0.00043835,120]
[330502596,1719522642810,-151.0,0.00043835,14]
[330502597,1719522642819,-151.0,0.00043835,14]
[330502598,1719522642828,-500.0,0.00043835,120]
[330502599,1719522642838,-151.0,0.00043835,14]
[330502600,1719522642847,-151.0,0.00043835,14]
[330502601,1719522642857,-500.0,0.00043835,2]
[330502602,1719522642867,-689.29,0.00043835,2]
[330502603,1719522642876,-250.0,0.00043835,120]
[330502604,1719522642885,-836.25,0.00043835,120]
[330502605,1719522642895,-500.0,0.00043835,120]
[330502606,1719522642904,-572.1105784,0.00043835,120]
[330502607,1719522642913,-500.0,0.00043835,120]
[330502608,1719522642923,-500.0,0.00043835,120]
[330502609,1719522642932,-500.0,0.00043835,120]
[330502610,1719522642941,-500.0,0.00043835,120]
[330502611,1719522642951,-593.93959269,0.00043835,120]
[330502612,1719522642960,-1910.41,0.00043835,120]
[330502613,1719522642969,-500.0,0.00043835,120]
[330502614,1719522642978,-500.0,0.00043835,120]
[330502615,1719522642987,-897.71,0.00043835,120]
[330502616,1719522642996,-500.0,0.00043835,120]
[330502617,1719522643005,-679.83,0.00043835,120]
[330502618,1719522643015,-553.92,0.00043835,120]
[330502619,1719522643024,-2833.13,0.00043835,120]
[330502620,1719522643034,-500.0,0.00043835,120]
[330502621,1719522643043,-886.38,0.00043835,120]
[330502622,1719522643054,-500.0,0.00043835,120]
[330502623,1719522643063,-505.5899617,0.00043835,120]
[330502624,1719522643072,-385.12944281,0.00043835,120]
[330502628,1719522643417,-114.87055719,0.00043835,120]
[330502629,1719522643427,-151.0,0.00043835,14]
[330502630,1719522643436,-500.0,0.00043835,120]
[330502632,1719522643446,-500.0,0.00043835,120]
[330502634,1719522643458,-500.0,0.00043835,120]
[330502636,1719522643467,-500.0,0.00043835,120]
[330502637,1719522643477,-502.12413421,0.00043835,120]
[330502638,1719522643486,-500.0,0.00043835,120]
[330502639,1719522643496,-383.14881449,0.00043835,120]
[330502648,1719522643758,-355.51987353,0.00038898,2]
[330502649,1719522643769,-116.85118551,0.00043835,120]
[330502651,1719522643778,-500.0,0.00043835,120]
[330502652,1719522643787,-1094.48,0.00043835,120]
[330502653,1719522643797,-1175.66,0.00043835,120]
[330502655,1719522643806,-500.0,0.00043835,120]
[330502657,1719522643815,-1079.36,0.00043835,120]
[330502659,1719522643824,-583.52753777,0.00043835,120]
[330502661,1719522643833,-205.15424669,0.00043835,120]
[330502662,1719522643844,-500.0,0.00043835,120]
[330502663,1719522643853,-521.79,0.00043835,120]
[330502664,1719522643863,-500.0,0.00043835,120]
[330502665,1719522643872,-556.7,0.00043835,120]
[330502666,1719522643881,-627.44,0.00043835,120]
[330502667,1719522643890,-500.0,0.00043835,120]
[330502668,1719522643899,-500.0,0.00043835,120]
[330502669,1719522643910,-500.0,0.00043835,120]
[330502670,1719522643919,-500.0,0.00043835,120]
[330502671,1719522643929,-500.0,0.00043835,120]
[330502672,1719522643937,-511.82,0.00043835,120]
[330502673,1719522643947,-500.0,0.00043835,120]
[330502674,1719522643956,-500.0,0.00043835,120]
[330502675,1719522643966,-701.91,0.00043835,120]
[330502676,1719522643976,-786.61,0.00043835,120]
[330502677,1719522643985,-500.0,0.00043835,120]
[330502678,1719522643994,-583.8,0.00043835,120]
[330502679,1719522644003,-500.0,0.00043835,120]
[330502680,1719522644013,-500.0,0.00043835,120]
[330502681,1719522644023,-500.0,0.00043835,120]
[330502682,1719522644032,-1923.59,0.00043835,120]
[330502683,1719522644041,-3101.44,0.00043835,120]
[330502684,1719522644051,-500.0,0.00043835,25]
[330502685,1719522644060,-660.17,0.00043835,120]
[330502686,1719522644070,-745.66,0.00043835,120]
[330502687,1719522644079,-500.0,0.00043835,120]